[Event "*** Titled Tuesday Blitz"]
[Site "Chess.com"]
[Date "2019.04.02"]
[Round "10"]
[White "DACF2905"]
[Black "GMKrikor"]
[Result "0-1"]
[WhiteElo "2093"]
[BlackElo "2709"]
[TimeControl "180+2"]
[EndTime "16:20:54 PDT"]
[Termination "GMKrikor won by resignation"]

1. e4 {[%clk 0:03:01.9]} 1... c5 {[%clk 0:03:00.1]} 2. Nf3 {[%clk 0:03:02.4]}
2... e6 {[%clk 0:03:01]} 3. d4 {[%clk 0:03:02.4]} 3... cxd4 {[%clk 0:03:02.9]}
4. Nxd4 {[%clk 0:03:03.5]} 4... Nc6 {[%clk 0:03:04.4]} 5. Nc3 {[%clk 0:03:03.6]}
5... a6 {[%clk 0:03:05.3]} 6. Be3 {[%clk 0:03:03.5]} 6... Nf6 {[%clk 0:03:06.2]}
7. Be2 {[%clk 0:02:59.7]} 7... Bb4 {[%clk 0:03:05.3]} 8. Qd3 {[%clk 0:03:00.5]}
8... Ne5 {[%clk 0:03:05.5]} 9. Qd1 {[%clk 0:02:58.8]} 9... Nxe4 {[%clk
0:03:05.7]} 10. O-O {[%clk 0:02:58.4]} 10... Bxc3 {[%clk 0:02:58.4]} 11. bxc3
{[%clk 0:02:57.5]} 11... Nxc3 {[%clk 0:02:59.6]} 12. Qd2 {[%clk 0:02:58.6]}
12... Nxe2+ {[%clk 0:02:56.3]} 13. Qxe2 {[%clk 0:02:59.6]} 13... O-O {[%clk
0:02:40]} 14. f4 {[%clk 0:02:59.8]} 14... Nc6 {[%clk 0:02:37.7]} 15. Nxc6 {[%clk
0:03:00.1]} 15... dxc6 {[%clk 0:02:27.9]} 16. Rad1 {[%clk 0:02:59.8]} 16... Qa5
{[%clk 0:02:06.2]} 17. Bd4 {[%clk 0:02:55]} 17... f6 {[%clk 0:02:01.1]} 18. f5
{[%clk 0:02:45.8]} 18... e5 {[%clk 0:01:47.7]} 19. Be3 {[%clk 0:02:46.7]} 19...
Qxa2 {[%clk 0:01:45.6]} 20. Rf3 {[%clk 0:02:36.1]} 20... Qf7 {[%clk 0:01:31.2]}
21. Rdf1 {[%clk 0:02:32.8]} 21... a5 {[%clk 0:00:59.2]} 22. Rh3 {[%clk
0:02:30.7]} 22... a4 {[%clk 0:00:54.8]} 23. Qg4 {[%clk 0:02:28]} 23... Kh8
{[%clk 0:00:55.5]} 24. Qh4 {[%clk 0:02:28.1]} 24... Qg8 {[%clk 0:00:56.8]} 25.
Rg3 {[%clk 0:02:25.8]} 25... Rf7 {[%clk 0:00:48.3]} 26. Bh6 {[%clk 0:02:25.3]}
26... Bd7 {[%clk 0:00:42.1]} 27. Rxg7 {[%clk 0:02:21.8]} 27... Rxg7 {[%clk
0:00:43.4]} 28. Qxf6 {[%clk 0:02:22.6]} 28... Qf7 {[%clk 0:00:37]} 29. Qxe5
{[%clk 0:02:21.4]} 29... Re8 {[%clk 0:00:36.4]} 30. Qd4 {[%clk 0:02:15.9]} 30...
Kg8 {[%clk 0:00:19.6]} 31. Bxg7 {[%clk 0:02:07.2]} 31... Qxg7 {[%clk 0:00:21.5]}
32. f6 {[%clk 0:02:08.5]} 32... Qf7 {[%clk 0:00:23.1]} 33. Qxa4 {[%clk
0:02:05.4]} 33... Be6 {[%clk 0:00:18.6]} 34. Qh4 {[%clk 0:02:02.5]} 34... Kh8
{[%clk 0:00:17.5]} 35. Rf3 {[%clk 0:01:55.1]} 35... Rg8 {[%clk 0:00:16.9]} 36.
Qd4 {[%clk 0:01:51.7]} 36... h6 {[%clk 0:00:12.6]} 37. Qf4 {[%clk 0:01:48.5]}
37... Rg6 {[%clk 0:00:13.1]} 38. Qb8+ {[%clk 0:01:47.9]} 38... Kh7 {[%clk
0:00:14.2]} 39. Qd8 {[%clk 0:01:44.2]} 39... Bd5 {[%clk 0:00:13.8]} 40. Rf2
{[%clk 0:01:45.2]} 40... Rg8 {[%clk 0:00:12]} 41. Qd6 {[%clk 0:01:44]} 41... Re8
{[%clk 0:00:08.9]} 42. h3 {[%clk 0:01:39.4]} 42... Re6 {[%clk 0:00:05.1]} 43.
Qd8 {[%clk 0:01:38.4]} 43... Re8 {[%clk 0:00:05.5]} 44. Qd6 {[%clk 0:01:39.1]}
44... Qg6 {[%clk 0:00:04.3]} 45. Qc7+ {[%clk 0:01:38]} 45... Bf7 {[%clk
0:00:04.9]} 46. Qxb7 {[%clk 0:01:34.8]} 46... Re1+ {[%clk 0:00:06]} 47. Kh2
{[%clk 0:01:34.6]} 47... Re6 {[%clk 0:00:07.7]} 48. Rf3 {[%clk 0:01:15.5]} 48...
Rxf6 {[%clk 0:00:06]} 49. Rg3 {[%clk 0:01:16.6]} 49... Qf5 {[%clk 0:00:06.5]}
50. Qe7 {[%clk 0:01:15.4]} 50... Qf4 {[%clk 0:00:04.5]} 51. Qf8 {[%clk
0:01:14.8]} 51... Bg6 {[%clk 0:00:06]} 52. Qe7+ {[%clk 0:01:14.2]} 52... Rf7
{[%clk 0:00:07.2]} 53. Qe6 {[%clk 0:01:13.9]} 53... Qf6 {[%clk 0:00:08.5]} 54.
Qe2 {[%clk 0:01:10.8]} 54... Re7 {[%clk 0:00:08.3]} 55. Qc4 {[%clk 0:01:10.4]}
55... Qe6 {[%clk 0:00:08.1]} 56. Qd4 {[%clk 0:01:10.5]} 56... Qe5 {[%clk
0:00:06.8]} 57. Qd8 {[%clk 0:01:10]} 57... h5 {[%clk 0:00:06.3]} 58. h4 {[%clk
0:01:10.2]} 58... Rf7 {[%clk 0:00:05.4]} 59. Kh3 {[%clk 0:01:06.1]} 59... Qe6+
{[%clk 0:00:05.8]} 60. Kh2 {[%clk 0:01:06.9]} 60... Qe5 {[%clk 0:00:07.5]} 61.
Kh3 {[%clk 0:01:07.9]} 61... Qf5+ {[%clk 0:00:09.1]} 62. Kh2 {[%clk 0:01:08.8]}
62... Qf4 {[%clk 0:00:09.8]} 63. Kh3 {[%clk 0:01:06.3]} 63... Qf5+ {[%clk
0:00:11.3]} 64. Kh2 {[%clk 0:01:07.4]} 64... Qf6 {[%clk 0:00:13.2]} 65. Qd2
{[%clk 0:00:14.5]} 65... Qxh4+ {[%clk 0:00:13.8]} 66. Rh3 {[%clk 0:00:15.1]}
66... Qf4+ {[%clk 0:00:15.4]} 67. Qxf4 {[%clk 0:00:15.5]} 67... Rxf4 {[%clk
0:00:17.3]} 68. Rc3 {[%clk 0:00:16]} 68... Be4 {[%clk 0:00:14.9]} 69. Rc5 {[%clk
0:00:15.9]} 69... Kg6 {[%clk 0:00:14]} 70. Kg3 {[%clk 0:00:15.5]} 70... Rg4+
{[%clk 0:00:15.1]} 71. Kf2 {[%clk 0:00:16.4]} 71... Rxg2+ {[%clk 0:00:16.4]} 72.
Ke3 {[%clk 0:00:18.3]} 72... Bd5 {[%clk 0:00:17.3]} 73. c3 {[%clk 0:00:18.6]}
73... h4 {[%clk 0:00:17.8]} 74. Ra5 {[%clk 0:00:19.4]} 74... h3 {[%clk
0:00:18.7]} 75. Ra1 {[%clk 0:00:21.3]} 75... h2 {[%clk 0:00:19.6]} 76. Rh1
{[%clk 0:00:21.1]} 76... Re2+ {[%clk 0:00:20.9]} 77. Kxe2 {[%clk 0:00:21.6]}
77... Bxh1 {[%clk 0:00:22.8]} 78. Kd3 {[%clk 0:00:23.3]} 78... Bg2 {[%clk
0:00:23.1]} 79. Ke2 {[%clk 0:00:25.2]} 79... h1=Q {[%clk 0:00:24.4]} 0-1

[Event "*** Titled Tuesday Blitz"]
[Site "Chess.com"]
[Date "2019.04.02"]
[Round "10"]
[White "nurgyulsalimova"]
[Black "vugarrasulov"]
[Result "1/2-1/2"]
[WhiteElo "2548"]
[BlackElo "2833"]
[TimeControl "180+2"]
[EndTime "16:20:55 PDT"]
[Termination "Game drawn - insufficient material"]

1. e4 {[%clk 0:03:01.9]} 1... e6 {[%clk 0:02:59.7]} 2. d4 {[%clk 0:03:01.8]}
2... d5 {[%clk 0:03:00.8]} 3. Nc3 {[%clk 0:03:01.4]} 3... Bb4 {[%clk 0:03:00]}
4. e5 {[%clk 0:03:01.9]} 4... Ne7 {[%clk 0:02:59.4]} 5. a3 {[%clk 0:03:02.3]}
5... Bxc3+ {[%clk 0:02:59.9]} 6. bxc3 {[%clk 0:03:04.2]} 6... c5 {[%clk
0:03:00.3]} 7. Qg4 {[%clk 0:03:05.6]} 7... cxd4 {[%clk 0:03:00.2]} 8. cxd4
{[%clk 0:02:58.2]} 8... Qc7 {[%clk 0:02:58]} 9. Ra2 {[%clk 0:02:55.3]} 9... Nf5
{[%clk 0:02:53.4]} 10. Nf3 {[%clk 0:02:51.8]} 10... Nc6 {[%clk 0:02:51.5]} 11.
Bd3 {[%clk 0:02:22]} 11... h5 {[%clk 0:02:46.7]} 12. Qf4 {[%clk 0:02:18.4]}
12... Ncxd4 {[%clk 0:02:47.3]} 13. Nxd4 {[%clk 0:02:14.7]} 13... Qc3+ {[%clk
0:02:48.3]} 14. Bd2 {[%clk 0:02:01]} 14... Qxd4 {[%clk 0:02:49.4]} 15. Bxf5
{[%clk 0:01:59.2]} 15... Qxf4 {[%clk 0:02:50.1]} 16. Bxf4 {[%clk 0:02:01.1]}
16... exf5 {[%clk 0:02:51.5]} 17. O-O {[%clk 0:02:01.9]} 17... Be6 {[%clk
0:02:51.6]} 18. Rb2 {[%clk 0:02:02.8]} 18... b6 {[%clk 0:02:52.1]} 19. a4 {[%clk
0:02:02.5]} 19... Rc8 {[%clk 0:02:49.2]} 20. a5 {[%clk 0:02:01.4]} 20... bxa5
{[%clk 0:02:49.6]} 21. Ra1 {[%clk 0:02:02.2]} 21... O-O {[%clk 0:02:50.6]} 22.
Rxa5 {[%clk 0:02:03.1]} 22... Rc7 {[%clk 0:02:51.3]} 23. h4 {[%clk 0:02:02.3]}
23... Rfc8 {[%clk 0:02:50.2]} 24. Be3 {[%clk 0:01:59.6]} 24... Rc4 {[%clk
0:02:47.6]} 25. Rxa7 {[%clk 0:01:31.5]} 25... d4 {[%clk 0:02:48]} 26. Bg5 {[%clk
0:01:31.7]} 26... Rxc2 {[%clk 0:02:47.8]} 27. Rxc2 {[%clk 0:01:32.5]} 27... Rxc2
{[%clk 0:02:49.7]} 28. Ra8+ {[%clk 0:01:33.8]} 28... Kh7 {[%clk 0:02:50.1]} 29.
Rd8 {[%clk 0:01:34.6]} 29... Rc4 {[%clk 0:02:50.6]} 30. f3 {[%clk 0:01:26]}
30... f4 {[%clk 0:02:44]} 31. Bxf4 {[%clk 0:01:22.5]} 31... d3 {[%clk
0:02:45.2]} 32. Bg5 {[%clk 0:01:20.8]} 32... Bf5 {[%clk 0:02:46.2]} 33. Kf2
{[%clk 0:01:08.9]} 33... Rc2+ {[%clk 0:02:47.1]} 34. Kg3 {[%clk 0:01:09.8]}
34... Re2 {[%clk 0:02:48.1]} 35. Rd5 {[%clk 0:00:48.1]} 35... Rc2 {[%clk
0:02:38]} 36. Rd6 {[%clk 0:00:42.8]} 36... Rc4 {[%clk 0:02:37.1]} 37. Rd8 {[%clk
0:00:39.5]} 37... Rc3 {[%clk 0:02:37.2]} 38. Rd6 {[%clk 0:00:37.2]} 38... Be6
{[%clk 0:02:38.2]} 39. Bd2 {[%clk 0:00:35.2]} 39... Rb3 {[%clk 0:02:38.5]} 40.
Bg5 {[%clk 0:00:35.3]} 40... Kg6 {[%clk 0:02:39.3]} 41. Rd4 {[%clk 0:00:31.7]}
41... Kf5 {[%clk 0:02:38.8]} 42. Bf4 {[%clk 0:00:31.3]} 42... Ra3 {[%clk
0:02:35.7]} 43. Rd8 {[%clk 0:00:28.8]} 43... Ra4 {[%clk 0:02:28.6]} 44. Bg5
{[%clk 0:00:29]} 44... Bc4 {[%clk 0:02:29.6]} 45. Bf4 {[%clk 0:00:08.3]} 45...
Ra6 {[%clk 0:02:30.1]} 46. Rd4 {[%clk 0:00:07.8]} 46... Rg6+ {[%clk 0:02:29.9]}
47. Bg5 {[%clk 0:00:09.2]} 47... Bb5 {[%clk 0:02:31.4]} 48. Rd5 {[%clk
0:00:09.4]} 48... Rb6 {[%clk 0:02:31.9]} 49. Rd6 {[%clk 0:00:09]} 49... Rb7
{[%clk 0:02:29]} 50. Rd5 {[%clk 0:00:08.3]} 50... Ke6 {[%clk 0:02:29.2]} 51.
Rd6+ {[%clk 0:00:08.2]} 51... Kxe5 {[%clk 0:02:30.4]} 52. Bf4+ {[%clk
0:00:09.3]} 52... Kf5 {[%clk 0:02:31.9]} 53. Rd5+ {[%clk 0:00:10.7]} 53... Ke6
{[%clk 0:02:32.9]} 54. Rd6+ {[%clk 0:00:11.8]} 54... Ke7 {[%clk 0:02:34.1]} 55.
Rd5 {[%clk 0:00:13.1]} 55... g6 {[%clk 0:02:34.9]} 56. Re5+ {[%clk 0:00:13.3]}
56... Kf6 {[%clk 0:02:32.5]} 57. Rd5 {[%clk 0:00:13.5]} 57... Ke6 {[%clk
0:02:33.7]} 58. Rd6+ {[%clk 0:00:13.3]} 58... Ke7 {[%clk 0:02:34.9]} 59. Rd5
{[%clk 0:00:14.6]} 59... f6 {[%clk 0:02:36.4]} 60. Rd4 {[%clk 0:00:13.9]} 60...
Ba6 {[%clk 0:02:30.4]} 61. Rd6 {[%clk 0:00:13]} 61... g5 {[%clk 0:02:21.2]} 62.
hxg5 {[%clk 0:00:12.5]} 62... fxg5 {[%clk 0:02:21.3]} 63. Rxa6 {[%clk
0:00:08.6]} 63... gxf4+ {[%clk 0:02:19.3]} 64. Kxf4 {[%clk 0:00:08.4]} 64... d2
{[%clk 0:02:11.1]} 65. Ra1 {[%clk 0:00:09.3]} 65... Kf6 {[%clk 0:01:59.3]} 66.
Rd1 {[%clk 0:00:10.4]} 66... Rb2 {[%clk 0:01:49.1]} 67. Ke3 {[%clk 0:00:11.3]}
67... Rb3+ {[%clk 0:01:50.5]} 68. Ke2 {[%clk 0:00:11.4]} 68... Kg5 {[%clk
0:01:51.4]} 69. Rxd2 {[%clk 0:00:12.5]} 69... Kf4 {[%clk 0:01:52.5]} 70. Kf2
{[%clk 0:00:12.6]} 70... Rb4 {[%clk 0:01:53.8]} 71. g3+ {[%clk 0:00:13.3]} 71...
Kg5 {[%clk 0:01:55.3]} 72. Rd5+ {[%clk 0:00:14.3]} 72... Kg6 {[%clk 0:01:56.9]}
73. Kg2 {[%clk 0:00:15.6]} 73... Rb3 {[%clk 0:01:56.9]} 74. Rd6+ {[%clk
0:00:15.5]} 74... Kg5 {[%clk 0:01:57.4]} 75. f4+ {[%clk 0:00:15.9]} 75... Kf5
{[%clk 0:01:55.8]} 76. Rh6 {[%clk 0:00:14.6]} 76... Rb2+ {[%clk 0:01:53.7]} 77.
Kh3 {[%clk 0:00:14.3]} 77... Ke4 {[%clk 0:01:55.6]} 78. Rxh5 {[%clk 0:00:14.5]}
78... Kf3 {[%clk 0:01:54.7]} 79. Ra5 {[%clk 0:00:14.2]} 79... Rb8 {[%clk
0:01:55.2]} 80. Ra3+ {[%clk 0:00:14.9]} 80... Ke4 {[%clk 0:01:56.7]} 81. Ra1
{[%clk 0:00:10.1]} 81... Kf3 {[%clk 0:01:45.5]} 82. Rf1+ {[%clk 0:00:10.6]}
82... Ke4 {[%clk 0:01:47.2]} 83. f5 {[%clk 0:00:07.9]} 83... Ke5 {[%clk
0:01:45]} 84. g4 {[%clk 0:00:08]} 84... Kf6 {[%clk 0:01:45.3]} 85. Kg3 {[%clk
0:00:07.8]} 85... Kg5 {[%clk 0:01:46.1]} 86. f6 {[%clk 0:00:06]} 86... Rb3+
{[%clk 0:01:45.3]} 87. Kg2 {[%clk 0:00:06.8]} 87... Rb2+ {[%clk 0:01:45.4]} 88.
Kg3 {[%clk 0:00:06]} 88... Rb3+ {[%clk 0:01:46.6]} 89. Kg2 {[%clk 0:00:07.5]}
89... Rb2+ {[%clk 0:01:47.7]} 90. Kg1 {[%clk 0:00:08.1]} 90... Rb8 {[%clk
0:01:48.1]} 91. f7 {[%clk 0:00:08.9]} 91... Rf8 {[%clk 0:01:49.7]} 92. Kg2
{[%clk 0:00:09.5]} 92... Kxg4 {[%clk 0:01:50.7]} 93. Rf2 {[%clk 0:00:08.7]}
93... Kg5 {[%clk 0:01:51.9]} 94. Kg3 {[%clk 0:00:10]} 94... Kg6 {[%clk
0:01:53.5]} 95. Kg4 {[%clk 0:00:11]} 95... Kg7 {[%clk 0:01:54.3]} 96. Kg5 {[%clk
0:00:11.6]} 96... Rb8 {[%clk 0:01:54.2]} 97. f8=Q+ {[%clk 0:00:11.7]} 97... Rxf8
{[%clk 0:01:55]} 98. Rxf8 {[%clk 0:00:13.3]} 98... Kxf8 {[%clk 0:01:56.9]}
1/2-1/2

[Event "*** Titled Tuesday Blitz"]
[Site "Chess.com"]
[Date "2019.04.02"]
[Round "10"]
[White "warmoatmeal"]
[Black "Nancy11111"]
[Result "1-0"]
[WhiteElo "1821"]
[BlackElo "2252"]
[TimeControl "180+2"]
[EndTime "16:20:56 PDT"]
[Termination "warmoatmeal won by checkmate"]

1. d4 {[%clk 0:03:01.9]} 1... d5 {[%clk 0:03:00]} 2. Bf4 {[%clk 0:03:02.5]} 2...
e6 {[%clk 0:03:00.5]} 3. e3 {[%clk 0:03:03.3]} 3... Bd6 {[%clk 0:03:01.5]} 4.
Bg3 {[%clk 0:03:04]} 4... Nf6 {[%clk 0:03:02.3]} 5. Nf3 {[%clk 0:03:04.7]} 5...
Ne4 {[%clk 0:03:02.6]} 6. Nbd2 {[%clk 0:03:02.8]} 6... Nxg3 {[%clk 0:02:58.3]}
7. hxg3 {[%clk 0:03:04.7]} 7... c5 {[%clk 0:02:58.7]} 8. c3 {[%clk 0:03:05.3]}
8... Nc6 {[%clk 0:02:58.7]} 9. Bd3 {[%clk 0:03:05.8]} 9... h6 {[%clk 0:02:59.7]}
10. Bb5 {[%clk 0:03:03.5]} 10... Bd7 {[%clk 0:02:59.8]} 11. Bxc6 {[%clk
0:03:02.9]} 11... Bxc6 {[%clk 0:03:00.7]} 12. Ne5 {[%clk 0:03:04.2]} 12... Qc7
{[%clk 0:02:59.8]} 13. f4 {[%clk 0:03:05]} 13... O-O-O {[%clk 0:02:56.5]} 14.
O-O {[%clk 0:02:55.8]} 14... f6 {[%clk 0:02:51.3]} 15. Nd3 {[%clk 0:02:50.7]}
15... c4 {[%clk 0:02:50.5]} 16. Nf2 {[%clk 0:02:51.4]} 16... e5 {[%clk
0:02:50.5]} 17. b3 {[%clk 0:02:34.3]} 17... exf4 {[%clk 0:02:42.3]} 18. exf4
{[%clk 0:02:34.4]} 18... g5 {[%clk 0:02:40.5]} 19. bxc4 {[%clk 0:02:33.8]} 19...
gxf4 {[%clk 0:02:39.5]} 20. c5 {[%clk 0:02:34.1]} 20... fxg3 {[%clk 0:02:39.2]}
21. cxd6 {[%clk 0:02:34.8]} 21... gxf2+ {[%clk 0:02:40.3]} 22. Rxf2 {[%clk
0:02:36.7]} 22... Qxd6 {[%clk 0:02:41.4]} 23. Qf3 {[%clk 0:02:35.9]} 23... Rdf8
{[%clk 0:02:38.2]} 24. Qf4 {[%clk 0:02:36.3]} 24... Qd7 {[%clk 0:02:30.6]} 25.
Qf5 {[%clk 0:02:36.1]} 25... Rhg8 {[%clk 0:02:30.8]} 26. Qxd7+ {[%clk 0:02:35]}
26... Kxd7 {[%clk 0:02:32.2]} 27. Raf1 {[%clk 0:02:36.5]} 27... Rg6 {[%clk
0:02:31.7]} 28. Nf3 {[%clk 0:02:36.1]} 28... Ke6 {[%clk 0:02:19.3]} 29. Ne5
{[%clk 0:02:18]} 29... Rg3 {[%clk 0:02:15.7]} 30. Nf3 {[%clk 0:01:52.4]} 30...
h5 {[%clk 0:02:12.1]} 31. Kh2 {[%clk 0:01:48.7]} 31... Rg6 {[%clk 0:02:04.8]}
32. Nh4 {[%clk 0:01:48.4]} 32... Rg4 {[%clk 0:02:00.3]} 33. Nf3 {[%clk
0:01:46.7]} 33... Bb5 {[%clk 0:01:58.8]} 34. Rb1 {[%clk 0:01:44.8]} 34... a6
{[%clk 0:01:54.6]} 35. a4 {[%clk 0:01:14.2]} 35... Bxa4 {[%clk 0:01:53.6]} 36.
Rxb7 {[%clk 0:01:13.8]} 36... Bb5 {[%clk 0:01:53.8]} 37. Ne5 {[%clk 0:01:11]}
37... f5 {[%clk 0:01:24.5]} 38. Rb6+ {[%clk 0:00:56.7]} 38... Ke7 {[%clk
0:01:22.2]} 39. Nxg4 {[%clk 0:00:45.5]} 39... hxg4 {[%clk 0:01:22.7]} 40. Kg3
{[%clk 0:00:41.7]} 40... Kd7 {[%clk 0:01:19.2]} 41. Kf4 {[%clk 0:00:39.7]} 41...
Re8 {[%clk 0:01:18.6]} 42. Kxf5 {[%clk 0:00:39.2]} 42... Kc7 {[%clk 0:01:17.6]}
43. Rf6 {[%clk 0:00:29.5]} 43... g3 {[%clk 0:01:17.4]} 44. Ra2 {[%clk
0:00:22.6]} 44... Re3 {[%clk 0:01:09.5]} 45. Ra3 {[%clk 0:00:18.7]} 45... Re2
{[%clk 0:01:07.4]} 46. Kf4 {[%clk 0:00:18.7]} 46... Rxg2 {[%clk 0:01:07.3]} 47.
Rg6 {[%clk 0:00:20.1]} 47... Rf2+ {[%clk 0:01:00.4]} 48. Kxg3 {[%clk 0:00:20.9]}
48... Rf1 {[%clk 0:01:01.7]} 49. Rg7+ {[%clk 0:00:21.1]} 49... Kb6 {[%clk
0:01:01.8]} 50. Rg5 {[%clk 0:00:21]} 50... Bc4 {[%clk 0:00:56.2]} 51. Rg6+
{[%clk 0:00:21]} 51... Kb5 {[%clk 0:00:56.5]} 52. Kg2 {[%clk 0:00:20]} 52... Rc1
{[%clk 0:00:52.9]} 53. Rgxa6 {[%clk 0:00:20.3]} 53... Rxc3 {[%clk 0:00:47.1]}
54. Rxc3 {[%clk 0:00:15.5]} 54... Kxa6 {[%clk 0:00:49]} 55. Kf3 {[%clk
0:00:16.8]} 55... Kb5 {[%clk 0:00:49.6]} 56. Ke3 {[%clk 0:00:18.2]} 56... Kb4
{[%clk 0:00:50.8]} 57. Rc1 {[%clk 0:00:19.1]} 57... Kb3 {[%clk 0:00:50.3]} 58.
Kf4 {[%clk 0:00:20.1]} 58... Kb2 {[%clk 0:00:50.6]} 59. Re1 {[%clk 0:00:20.1]}
59... Kc3 {[%clk 0:00:50.5]} 60. Ke5 {[%clk 0:00:22]} 60... Kd3 {[%clk 0:00:50]}
61. Rg1 {[%clk 0:00:22.5]} 61... Kd2 {[%clk 0:00:46.5]} 62. Rg6 {[%clk
0:00:23.4]} 62... Kd3 {[%clk 0:00:40.2]} 63. Rd6 {[%clk 0:00:23.8]} 63... Kc3
{[%clk 0:00:40]} 64. Rxd5 {[%clk 0:00:22.7]} 64... Kb4 {[%clk 0:00:35.9]} 65.
Rc5 {[%clk 0:00:22.6]} 65... Bb3 {[%clk 0:00:36.1]} 66. Rc1 {[%clk 0:00:22.4]}
66... Ba2 {[%clk 0:00:36.3]} 67. d5 {[%clk 0:00:22.8]} 67... Bxd5 {[%clk
0:00:37.4]} 68. Kxd5 {[%clk 0:00:23.7]} 68... Kb3 {[%clk 0:00:38.5]} 69. Kd4
{[%clk 0:00:24.3]} 69... Kb2 {[%clk 0:00:38.9]} 70. Rc8 {[%clk 0:00:25.3]} 70...
Kb3 {[%clk 0:00:39.6]} 71. Rc7 {[%clk 0:00:23.9]} 71... Kb2 {[%clk 0:00:39.2]}
72. Kd3 {[%clk 0:00:24.6]} 72... Kb3 {[%clk 0:00:38.5]} 73. Rb7+ {[%clk
0:00:25.3]} 73... Ka4 {[%clk 0:00:39.7]} 74. Kc4 {[%clk 0:00:25.8]} 74... Ka5
{[%clk 0:00:40.7]} 75. Rb5+ {[%clk 0:00:25.2]} 75... Ka6 {[%clk 0:00:40.7]} 76.
Kc5 {[%clk 0:00:25.9]} 76... Ka7 {[%clk 0:00:41.8]} 77. Rb6 {[%clk 0:00:26.9]}
77... Ka8 {[%clk 0:00:42.9]} 78. Kc6 {[%clk 0:00:26.8]} 78... Ka7 {[%clk
0:00:43.9]} 79. Kc7 {[%clk 0:00:27.3]} 79... Ka8 {[%clk 0:00:45.1]} 80. Ra6#
{[%clk 0:00:28.7]} 1-0